bitfinex/quotes_SOLUSD_20250818
["timestamp","ask_amount","ask_price","bid_price","bid_amount"]
[1755521609705,0.1,182.8,182.79,72.88248477]
[1755521610081,0.78,182.8,182.79,26.0]
[1755521610287,0.78,182.8,182.77,8.32520944]
[1755521610486,3.6855678,182.79,182.77,2.853852]
[1755521610724,0.1,182.8,182.78,26.0]
[1755521610908,3.6857688,182.79,182.78,26.0]
[1755521611101,3.6857688,182.79,182.78,38.83354287]
[1755521611318,0.1,182.8,182.78,38.83354287]
[1755521611513,0.1,182.8,182.79,47.82248477]
[1755521611821,0.1,182.8,182.79,40.46]
[1755521612712,0.1,182.8,182.78,38.83354287]
[1755521613024,0.78,182.8,182.79,45.91075879]
[1755521613703,0.78,182.8,182.79,5.47075879]
[1755521614622,0.1,182.8,182.79,5.47075879]
[1755521615330,0.1,182.8,182.79,12.83324356]
[1755521617234,0.1,182.8,182.79,15.02580556]
[1755521617821,0.1,182.8,182.79,7.66332079]
[1755521618128,0.78,182.8,182.79,5.47075879]
[1755521618349,0.78,182.8,182.77,5.47135744]
[1755521618508,11.04937998,182.79,182.77,2.192802]
[1755521618709,0.68,182.78,182.76,5.50160235]
[1755521618906,0.68,182.77,182.76,5.50160235]
[1755521620131,0.68,182.79,182.76,5.50160235]
[1755521620326,3.53408677,182.79,182.76,5.50160235]
[1755521620533,3.53408677,182.79,182.77,40.64]
[1755521621013,3.53408677,182.79,182.78,5.4710581]
[1755521621213,7.22107267,182.79,182.78,5.4710581]
[1755521621434,7.22107267,182.79,182.77,5.4713232]
[1755521621649,3.68726412,182.78,182.77,5.4713232]
[1755521621935,4.36726412,182.78,182.77,5.4713232]
[1755521624632,2.85408677,182.79,182.77,5.4713232]
[1755521624827,3.53408677,182.79,182.77,5.4713232]
[1755521625832,2.85408677,182.79,182.77,12.83380797]
[1755521626131,0.1,182.8,182.78,7.422484]
[1755521626523,0.78,182.8,182.78,47.982484]
[1755521626739,0.78,182.8,182.78,55.34496877]
[1755521626936,0.78,182.8,182.79,5.47075879]
[1755521627119,4.46785911,182.8,182.79,5.47075879]
[1755521628932,4.46785911,182.8,182.78,46.03095981]
[1755521629240,0.68,182.79,182.78,46.03095981]
[1755521629721,0.1,182.8,182.78,53.64344458]
[1755521629921,0.1,182.8,182.78,53.39344458]
[1755521630322,0.1,182.8,182.78,46.03095981]
[1755521630522,0.78,182.8,182.78,46.03095981]
[1755521631049,0.68,182.79,182.78,46.03095981]
[1755521631942,0.68,182.79,182.78,45.93095981]
[1755521631943,4.36823637,182.79,182.78,45.93095981]
[1755521632514,0.1,182.8,182.78,45.93095981]
[1755521632928,0.78,182.8,182.78,45.93095981]
[1755521633249,0.68,182.79,182.78,45.93095981]
[1755521634718,4.36840534,182.79,182.78,40.46]
[1755521635340,3.68840534,182.79,182.78,45.9310581]
[1755521635648,0.1,182.8,182.78,5.4710581]
[1755521636145,0.78,182.8,182.78,5.4710581]
[1755521636646,0.68,182.79,182.78,5.4710581]
[1755521636948,4.3682702,182.79,182.78,5.4710581]
[1755521639021,3.6882702,182.79,182.78,5.4710581]
[1755521639450,4.3682702,182.79,182.78,5.4710581]
[1755521639750,0.1,182.8,182.78,5.7210581]
[1755521640042,0.1,182.8,182.79,47.64248477]
[1755521640420,0.1,182.8,182.79,53.11324356]
[1755521640621,0.1,182.8,182.79,56.27692956]
[1755521641949,0.1,182.8,182.79,56.02692956]
[1755521642461,0.1,182.8,182.79,48.66444479]
[1755521642644,0.1,182.8,182.79,56.02692956]
[1755521644161,0.1,182.8,182.79,48.66444479]
[1755521644323,2.11860112,182.86,182.79,56.02692956]
[1755521644521,7.78261415,182.85,182.79,92.22692956]
[1755521644724,2.11860112,182.86,182.81,7.36248477]
[1755521644725,3.6861916,182.84,182.81,7.36248477]
[1755521644932,3.6861916,182.83,182.81,47.60248477]
[1755521645235,3.6861916,182.82,182.81,47.60248477]
[1755521645430,3.6861916,182.82,182.81,81.91016027]
[1755521645643,3.6861916,182.82,182.81,41.67016027]
[1755521646448,4.3661916,182.82,182.81,41.67016027]
[1755521646765,4.3661916,182.82,182.81,36.2]
[1755521647850,3.6861916,182.82,182.81,83.76248477]
[1755521648363,3.6861916,182.82,182.81,76.4]
[1755521648662,3.6861916,182.82,182.81,88.35573577]
[1755521648838,3.6861916,182.82,182.81,94.54589604]
[1755521649360,3.6861916,182.82,182.81,87.18341127]
[1755521649659,3.6861916,182.82,182.81,93.82589604]
[1755521650066,4.3661916,182.82,182.81,40.793251]
[1755521650266,4.3661916,182.82,182.81,80.953251]
[1755521650765,4.3661916,182.82,182.81,86.42341127]
[1755521650959,3.6861916,182.82,182.81,86.42341127]
[1755521651468,3.6861916,182.82,182.81,93.78589604]
[1755521652362,3.6861916,182.82,182.81,86.42341127]
[1755521652552,3.6861916,182.82,182.81,93.78589604]
[1755521654669,3.6861916,182.82,182.81,94.50589604]
[1755521655166,3.6861916,182.82,182.81,93.78589604]
[1755521656161,10.06162215,182.87,182.81,86.42341127]
[1755521656359,0.67,182.83,182.81,93.78589604]
[1755521656562,7.36248477,182.86,182.81,89.19264504]
[1755521656857,0.67,182.83,182.81,104.33730904]
[1755521657062,0.67,182.83,182.81,89.19264504]
[1755521657463,0.67,182.83,182.82,12.83234506]
[1755521658857,4.35578813,182.85,182.82,12.83234506]
[1755521659052,0.67,182.85,182.82,12.83234506]
[1755521659258,4.35578813,182.85,182.82,12.83234506]
[1755521659459,0.67,182.85,182.82,20.19482983]
[1755521659770,4.35578813,182.85,182.82,20.19482983]
[1755521659956,0.67,182.85,182.82,20.19482983]
[1755521661453,0.67,182.85,182.82,12.83234506]
[1755521661659,0.67,182.85,182.82,20.19482983]
[1755521661860,0.67,182.85,182.82,56.39482983]
[1755521662067,0.67,182.85,182.82,49.03234506]
[1755521662259,0.67,182.84,182.82,49.03234506]
[1755521662460,8.03248477,182.86,182.82,49.03234506]
[1755521662669,0.67,182.85,182.82,49.03234506]
[1755521662970,0.67,182.85,182.82,56.39482983]
[1755521663148,0.67,182.84,182.82,56.39482983]
[1755521665547,11.45625156,182.86,182.82,49.03234506]
[1755521665866,0.67,182.85,182.82,49.03234506]
[1755521666454,0.67,182.85,182.82,56.39482983]
[1755521668776,0.67,182.85,182.82,49.03234506]
[1755521668978,0.67,182.84,182.82,49.03234506]
[1755521670462,0.67,182.84,182.82,36.2]
[1755521670653,4.09536116,182.85,182.82,49.0323398]
[1755521670865,4.09536116,182.85,182.82,49.6923398]
[1755521671573,4.09536116,182.85,182.82,49.0323398]
[1755521671759,0.67,182.85,182.82,49.0323398]
[1755521671963,0.67,182.85,182.82,41.66985503]
[1755521672161,0.1346336,182.85,182.82,41.66985503]
[1755521672364,7.36248477,182.86,182.82,41.66985503]
[1755521672967,7.36248477,182.86,182.82,42.32985503]
[1755521673370,7.36248477,182.86,182.82,36.2]
[1755521674155,0.33,182.85,182.82,56.2]
[1755521674375,11.78825769,182.85,182.82,56.2]
[1755521674679,0.39,182.87,182.83,0.66]
[1755521674865,4.09581078,182.86,182.83,0.66]
[1755521675073,0.06,182.87,182.83,0.66]
[1755521675280,4.09569695,182.86,182.84,0.66]
[1755521675880,0.06,182.87,182.84,0.66]
[1755521676180,4.15560021,182.87,182.84,0.66]
[1755521676385,4.15560021,182.87,182.84,6.12922685]
[1755521676562,4.48560021,182.87,182.84,13.49171162]
[1755521676759,0.06,182.87,182.85,8.02248477]
[1755521677076,0.06,182.87,182.85,15.76621557]
[1755521677077,0.06,182.86,182.85,15.76621557]
[1755521677374,0.06,182.86,182.85,58.66870034]
[1755521677579,0.06,182.86,182.85,64.13766397]
[1755521677778,0.06,182.86,182.85,57.4351792]
[1755521677977,0.06,182.86,182.85,64.79766397]
[1755521678280,0.06,182.86,182.85,68.89316497]
[1755521680270,4.15490731,182.9,182.85,68.89316497]
[1755521680566,4.15490731,182.9,182.87,15.10621557]
[1755521680758,0.06,182.9,182.89,7.36248477]
[1755521681170,0.06,182.9,182.89,22.46870034]
[1755521681372,0.06,182.9,182.89,23.12870034]
[1755521681574,0.06,182.9,182.89,28.59646785]
[1755521682284,0.01181116,182.92,182.9,15.10621557]
[1755521682460,0.01181116,182.92,182.9,15.76621557]
[1755521682657,0.33,182.91,182.89,7.36248477]
[1755521682857,0.33,182.9,182.88,47.12248477]
[1755521683081,4.43359824,182.92,182.89,7.36248477]
[1755521683292,4.42178708,182.91,182.89,7.36248477]
[1755521683476,0.33,182.91,182.89,7.36248477]
[1755521684058,0.01181116,182.92,182.89,7.36248477]
[1755521684264,0.01181116,182.92,182.88,15.10621557]
[1755521684465,0.01181116,182.92,182.88,22.46870034]
[1755521684665,0.01181116,182.92,182.89,7.36248477]
[1755521685791,0.01181116,182.92,182.88,20.57426896]
[1755521685792,0.01181116,182.92,182.88,15.10621557]
[1755521685995,7.37429593,182.92,182.87,22.46870034]
[1755521686290,0.01181116,182.92,182.87,22.46870034]
[1755521686593,7.36248477,182.91,182.86,15.10621557]
[1755521686778,7.36248477,182.9,182.85,7.36248477]
[1755521687170,7.36248477,182.89,182.83,38.83174855]
[1755521687373,7.36248477,182.89,182.84,22.46870034]
[1755521687576,12.8302786,182.89,182.84,22.46870034]
[1755521687768,12.8302786,182.89,182.84,23.15870034]
[1755521688092,7.36248477,182.89,182.85,0.69]
[1755521688497,12.83026572,182.89,182.85,0.69]
[1755521688672,7.36248477,182.89,182.85,0.69]
[1755521689474,47.08248477,182.9,182.86,0.69]
[1755521689672,47.08248477,182.9,182.85,5.46886143]
[1755521689895,47.08248477,182.9,182.85,13.5213462]
[1755521690873,39.72,182.9,182.86,8.05248477]
[1755521691278,39.7,182.9,182.86,8.05248477]
[1755521692390,12.8296649,182.91,182.86,8.05248477]
[1755521692693,39.7,182.9,182.86,13.52112431]
[1755521694381,47.06248477,182.9,182.86,0.69]
[1755521694587,47.12248477,182.9,182.85,12.83136177]
[1755521694778,47.12248477,182.9,182.85,13.52136177]
[1755521695000,39.64,182.89,182.85,13.52136177]
[1755521696897,7.42248477,182.9,182.85,13.52136177]
[1755521697091,43.73274213,182.89,182.85,7.36248477]
[1755521697396,12.88995906,182.9,182.85,43.56248477]
[1755521697577,39.6,182.88,182.85,49.72141173]
[1755521699699,39.58,182.88,182.85,49.72141173]
[1755521700480,12.88997132,182.9,182.85,49.72141173]
[1755521700700,39.58,182.88,182.85,44.25248477]
[1755521700998,39.56,182.88,182.85,49.03135204]
[1755521701379,39.56,182.88,182.85,36.2]
[1755521701783,0.72,182.87,182.85,36.2]
[1755521701972,40.28,182.88,182.85,36.2]
[1755521702383,40.28,182.88,182.85,36.89]
[1755521702884,39.56,182.88,182.85,36.89]
[1755521706083,7.36248477,182.86,182.82,20.03]
[1755521706305,26.06,182.9,182.82,20.03]
[1755521706306,4.70623539,182.83,182.82,20.03]
[1755521706495,5.42623539,182.83,182.82,20.03]
[1755521707094,9.52125708,182.83,182.82,20.03]
[1755521707292,4.81502169,182.83,182.82,20.03]
[1755521707498,9.52024583,182.83,182.82,20.03]
[1755521708289,43.64061226,182.83,182.82,20.03]
[1755521708700,43.64061226,182.83,182.8,0.03]
[1755521708900,7.35703994,182.81,182.8,0.03]
[1755521709082,26.0,182.79,182.78,0.03]
[1755521709288,77.03105038,182.79,182.78,0.03]
[1755521709485,77.75105038,182.79,182.78,0.03]
[1755521709802,10.0,182.78,182.76,0.03]
[1755521710029,30.09401044,182.77,182.76,0.03]
[1755521710207,38.17105038,182.77,182.76,0.03]
[1755521710402,43.64240782,182.77,182.76,0.03]
[1755521710707,75.85571893,182.77,182.76,0.03]
[1755521710913,83.21275887,182.77,182.76,0.03]
[1755521711092,90.56979881,182.77,182.76,0.03]
[1755521711300,90.56979881,182.77,182.75,0.03]
[1755521711496,19.51844137,182.76,182.73,0.03]
[1755521711692,37.44140143,182.75,182.73,0.03]
[1755521711894,38.16140143,182.75,182.73,0.03]
[1755521712409,36.27631771,182.75,182.73,0.03]
[1755521712614,79.12899616,182.75,182.73,0.03]
[1755521718634,71.77195622,182.75,182.73,0.03]
[1755521718923,79.12899616,182.75,182.73,0.03]
[1755521719710,79.14899616,182.75,182.73,0.03]
[1755521720408,71.07195622,182.75,182.74,0.69]
[1755521720607,38.82899616,182.75,182.74,0.69]
[1755521720810,78.42899616,182.75,182.74,0.69]
[1755521721125,78.42899616,182.75,182.74,0.03]
[1755521721348,38.82899616,182.75,182.74,0.03]
[1755521721556,78.42899616,182.75,182.74,0.03]
[1755521724660,0.06,182.79,182.74,8.04703994]
[1755521724837,0.06,182.79,182.78,7.35703994]
[1755521725159,39.66,182.79,182.78,7.35703994]
[1755521725348,39.66,182.79,182.78,8.01703994]
[1755521725870,39.66,182.79,182.78,0.66]
[1755521727640,39.66,182.79,182.78,8.01703994]
[1755521728275,43.31129708,182.79,182.78,13.48809804]
[1755521728561,0.06,182.79,182.78,13.48809804]
[1755521729873,0.06,182.79,182.78,49.68809804]
[1755521730680,0.06,182.79,182.78,36.86]
[1755521730838,3.71285006,182.79,182.78,36.2]
[1755521731043,43.29285006,182.79,182.78,36.2]
[1755521731561,43.29285006,182.79,182.78,36.86]
[1755521731986,43.29285006,182.79,182.78,36.2]
[1755521733887,43.29285006,182.79,182.78,36.86]
[1755521734054,43.29285006,182.79,182.78,36.2]
[1755521734693,43.29285006,182.79,182.78,36.86]
[1755521735190,43.29285006,182.79,182.78,36.2]
[1755521735688,43.29285006,182.79,182.78,0.66]
[1755521736792,43.29285006,182.79,182.78,13.48809804]
[1755521736793,3.71285006,182.79,182.78,13.48809804]
[1755521737759,3.71285006,182.79,182.78,49.68809804]
[1755521741282,3.71285006,182.79,182.78,42.3310581]
[1755521741460,3.71285006,182.79,182.78,36.2]
[1755521741663,3.71285006,182.79,182.76,49.68859714]
[1755521741861,3.65285006,182.78,182.76,44.21703994]
[1755521742076,3.65285006,182.77,182.76,44.21703994]
[1755521743177,3.65285006,182.77,182.76,36.2]
[1755521743364,3.65285006,182.77,182.76,36.86]
[1755521743579,3.65285006,182.77,182.76,42.33165681]
[1755521745391,3.65285006,182.77,182.76,49.68869675]
[1755521745578,39.58,182.78,182.76,49.68869675]
[1755521745898,3.66432437,182.77,182.76,49.02869675]
[1755521746080,39.58,182.78,182.76,49.02869675]
[1755521746487,39.58,182.78,182.77,0.69]
[1755521746695,43.24570788,182.78,182.77,8.04703994]
[1755521746903,3.66570788,182.78,182.77,23.15325551]
[1755521747101,39.64,182.79,182.77,22.46325551]
[1755521747287,39.64,182.79,182.78,13.51809804]
[1755521747471,43.30681109,182.79,182.78,49.71809804]
[1755521747674,3.72681109,182.79,182.78,49.71809804]
[1755521748770,0.06,182.79,182.78,49.71809804]
[1755521749280,3.72978787,182.79,182.78,49.71809804]
[1755521750088,0.06,182.79,182.78,49.71809804]
[1755521750274,3.73149918,182.79,182.78,42.3610581]
[1755521750475,3.73149918,182.79,182.78,49.71809804]
[1755521754190,0.06,182.79,182.78,49.71809804]
[1755521756687,0.06,182.79,182.78,42.3610581]
[1755521757014,0.06,182.79,182.78,49.71809804]
[1755521759327,0.06,182.79,182.78,42.3610581]
[1755521759513,0.06,182.79,182.78,49.71809804]
[1755521760028,0.06,182.81,182.79,15.10621557]
[1755521760231,0.06,182.81,182.8,23.15325551]
[1755521760922,0.06,182.81,182.78,5.4710581]
[1755521760923,0.06,182.81,182.78,6.1610581]
[1755521761125,0.74,182.81,182.78,13.51809804]
[1755521761630,0.06,182.81,182.79,24.49305594]
[1755521761832,0.06,182.81,182.79,6.16066227]
[1755521762531,0.06,182.81,182.79,5.47066227]
[1755521763732,0.74,182.81,182.78,5.47096994]
[1755521764629,0.06,182.81,182.8,7.35703994]
[1755521765007,0.06,182.81,182.8,8.04703994]
[1755521765522,0.06,182.81,182.8,44.24703994]
[1755521765704,0.06,182.81,182.8,36.89]
[1755521766021,0.06,182.81,182.8,42.36045951]
[1755521766402,0.06,182.81,182.8,49.71749945]
[1755521767131,0.06,182.81,182.8,64.82371502]
[1755521768340,0.06,182.81,182.8,57.46667508]
[1755521768652,0.06,182.81,182.8,41.67045951]
[1755521770637,0.06,182.81,182.8,58.11737651]
[1755521770836,0.06,182.81,182.8,66.16441645]
[1755521771529,0.06,182.81,182.8,81.27063202]
[1755521772035,0.06,182.81,182.8,73.91359208]
[1755521772208,0.06,182.85,182.84,7.35703994]
[1755521772614,0.06,182.85,182.84,8.04703994]
[1755521772812,0.06,182.85,182.84,13.51630268]
[1755521773034,0.06,182.85,182.84,28.62251825]
[1755521776941,0.06,182.85,182.84,5.46926274]
[1755521777149,0.06,182.85,182.84,7.35703994]
[1755521777723,0.06,182.85,182.82,6.12986106]
[1755521777924,0.06,182.85,182.84,7.35703994]
[1755521778243,0.06,182.85,182.84,12.82630268]
[1755521778625,0.06,182.85,182.84,13.48630268]
[1755521780725,0.06,182.85,182.84,29.92961368]
[1755521781642,0.06,182.85,182.84,45.03582925]
[1755521783267,0.06,182.85,182.84,120.75582925]
[1755521789961,1e-08,182.85,182.84,120.75582925]
[1755521790657,1e-08,182.85,182.84,120.09582925]
[1755521790843,1e-08,182.85,182.84,120.75582925]
[1755521797987,1e-08,182.85,182.84,73.21878931]
[1755521798277,1e-08,182.85,182.84,120.05582925]
[1755521798658,1e-08,182.85,182.84,120.71582925]
[1755521800182,1e-08,182.85,182.84,120.05582925]
[1755521801047,1e-08,182.85,182.84,119.0416416]
[1755521802257,1e-08,182.85,182.84,119.7016416]
[1755521803656,1e-08,182.85,182.84,119.0416416]
[1755521803957,1e-08,182.85,182.84,79.5616416]
[1755521806845,0.69000001,182.85,182.84,64.45542603]
[1755521808467,1e-08,182.85,182.84,64.45542603]
[1755521810058,1e-08,182.85,182.84,57.09838609]
[1755521810261,0.69000001,182.85,182.84,52.643311]
[1755521810474,0.69000001,182.85,182.84,16.443311]
[1755521810647,0.69000001,182.85,182.83,12.82658795]
[1755521810853,0.69000001,182.85,182.83,12.82658801]
[1755521811057,1e-08,182.85,182.83,20.18362795]
[1755521811284,1e-08,182.85,182.84,8.05703994]
[1755521811496,1e-08,182.85,182.84,7.35703994]
[1755521811795,0.69000001,182.85,182.84,7.35703994]
[1755521812482,0.69000001,182.85,182.84,12.82630268]
[1755521812885,0.69000001,182.85,182.84,16.91840168]
[1755521813090,0.69000001,182.85,182.84,9.56136174]
[1755521813400,1e-08,182.85,182.84,16.91840168]
[1755521814091,1e-08,182.85,182.84,32.72461725]
[1755521815585,1e-08,182.85,182.84,68.92461725]
[1755521816181,1e-08,182.85,182.84,61.56757731]
[1755521816379,1e-08,182.85,182.84,68.92461725]
[1755521817697,1e-08,182.85,182.84,94.92461725]
[1755521821497,0.06,182.87,182.86,5.46866455]
[1755521821711,0.06,182.87,182.86,52.28570449]
[1755521821908,0.06,182.87,182.86,52.98570449]
[1755521822414,0.06,182.87,182.86,55.17754549]
[1755521824395,0.06,182.87,182.86,54.47754549]
[1755521825215,0.06,182.87,182.86,55.17754549]
[1755521826412,0.06,182.87,182.86,52.52084731]
[1755521827515,0.06,182.87,182.86,88.7208473]
[1755521834923,0.06,182.87,182.86,103.82706287]
[1755521835831,0.06,182.89,182.88,51.30621556]
[1755521836031,0.06,182.89,182.88,95.42655732]
[1755521836231,0.06,182.89,182.88,96.14655732]
[1755521836535,0.06,182.89,182.88,98.33791832]
[1755521836916,0.06,182.9,182.89,15.10621557]
[1755521837232,1e-08,182.9,182.89,56.72655732]
[1755521837627,1e-08,182.91,182.89,56.72655732]
[1755521837807,1e-08,182.91,182.9,59.22655733]
[1755521838011,1e-08,182.91,182.9,59.94655733]
[1755521838432,1e-08,182.91,182.9,62.13755833]
[1755521839038,1e-08,182.91,182.9,67.60502689]
[1755521839222,1e-08,182.91,182.9,93.60502689]
[1755521839912,1e-08,182.91,182.9,67.60502689]
[1755521842341,0.7,182.96,182.9,67.60502689]
[1755521842342,0.7,182.96,182.92,61.46161691]
[1755521842545,0.7,182.96,182.92,100.86161691]
[1755521842719,0.7,182.96,182.92,101.58161691]
[1755521843042,0.7,182.96,182.92,105.26537891]
[1755521843428,0.06,182.95,182.92,105.26537891]
[1755521844343,0.06,182.95,182.92,100.56503715]
[1755521844634,0.76,182.93,182.92,104.54537891]
[1755521844825,0.06,182.93,182.92,104.54537891]
[1755521845345,0.06,182.93,182.92,105.26537891]
[1755521846738,0.06,182.93,182.92,104.54537891]
[1755521848242,0.06,182.93,182.92,65.14537891]
[1755521848445,0.06,182.93,182.92,104.54537891]
[1755521848623,0.7,183.06,182.96,41.10621557]
[1755521848823,0.7,183.05,183.04,19.80655733]
[1755521849141,0.7,183.05,183.04,59.18655733]
[1755521849338,0.7,183.05,183.04,63.88689933]
[1755521849826,0.7,183.05,183.04,4.700342]
[1755521850239,0.7,183.05,183.04,44.080342]
[1755521850446,0.7,183.05,183.04,48.78068376]
[1755521850820,0.7,183.05,183.04,54.24397047]
[1755521851637,0.7,183.05,183.04,49.54362871]
[1755521851846,0.7,183.05,183.04,54.24397047]
[1755521852222,0.23831804,183.08,183.04,54.24397047]
[1755521852449,0.7,183.07,183.06,7.33117502]
[1755521852631,0.7,183.07,183.06,39.38]
[1755521852949,0.7,183.07,183.06,46.71117502]
[1755521853535,0.7,183.07,183.06,52.17386484]
[1755521854851,0.7,183.07,183.06,68.59737184]
[1755521856536,0.7,183.07,183.06,61.26619682]
[1755521856740,0.7,183.07,183.06,68.59737184]
[1755521857123,0.7,183.07,183.06,104.78556066]
[1755521859028,0.7,183.07,183.06,65.40556066]
[1755521859251,0.7,183.07,183.06,52.61169582]
[1755521860232,0.7,183.07,183.06,59.94287084]
[1755521860643,0.7,183.07,183.06,65.40556066]
[1755521861736,0.23831804,183.08,183.06,65.40556066]
[1755521862059,0.93831804,183.08,183.06,65.40556066]
[1755521862362,0.93831804,183.08,183.06,48.98205366]
[1755521862649,0.23831804,183.08,183.07,7.391175]
[1755521862835,0.23831804,183.08,183.07,12.85356643]
[1755521863034,0.23831804,183.08,183.07,20.18474145]
[1755521864952,0.23831804,183.08,183.07,20.90474145]
[1755521865334,0.23831804,183.08,183.07,72.19914584]
[1755521867278,0.23831804,183.08,183.07,111.53914584]
[1755521867436,0.23831804,183.08,183.07,72.19914584]
[1755521867631,0.23831804,183.08,183.07,111.53914584]
[1755521872046,0.23831804,183.08,183.07,101.35095702]
[1755521874778,0.06,183.09,183.08,15.10621557]
[1755521875148,0.06,183.11,183.1,26.0]
[1755521875475,0.06,183.12,183.11,15.10621557]
[1755521875653,0.06,183.12,183.11,29.76856561]
[1755521875851,0.06,183.12,183.11,35.93698561]
[1755521876076,34.30626351,183.22,183.13,15.10621557]
[1755521876077,0.67,183.18,183.13,15.10621557]
[1755521876285,0.67,183.18,183.14,39.32]
[1755521876461,0.67,183.18,183.15,5.46000546]
[1755521876666,0.67,183.17,183.15,5.46000546]
[1755521876872,0.67,183.17,183.15,21.87452746]
[1755521877257,0.67,183.17,183.15,5.46000546]
[1755521877583,0.67,183.16,183.13,5.46037748]
[1755521877785,0.67,183.15,183.13,5.46037748]
[1755521878164,4.0524087,183.2,183.14,12.789412]
[1755521878361,0.67,183.17,183.14,12.789412]
[1755521878560,0.67,183.19,183.14,58.25971433]
[1755521878851,0.67,183.19,183.17,7.33117502]
[1755521879266,0.67,183.19,183.18,7.33117502]
[1755521879771,0.67,183.21,183.18,7.33117502]
[1755521879962,4.05265189,183.23,183.19,7.33117502]
[1755521880164,0.67,183.22,183.19,7.33117502]
[1755521880671,0.67,183.22,183.18,20.11988102]
[1755521880873,4.72422622,183.22,183.18,20.11988102]
[1755521881183,0.06,183.19,183.18,20.11988102]
[1755521881556,0.73,183.19,183.18,20.11988102]
[1755521881877,0.73,183.19,183.18,20.82988102]
[1755521881878,0.06,183.19,183.18,20.82988102]
[1755521882183,0.06,183.19,183.18,25.57899227]
[1755521883372,0.73,183.19,183.18,20.11988102]
[1755521883763,0.73,183.19,183.18,12.788706]
[1755521883964,0.73,183.19,183.18,7.33117502]
[1755521884276,0.06,183.19,183.18,14.66235002]
[1755521885278,0.06,183.19,183.18,15.37235002]
[1755521886075,0.06,183.19,183.18,20.83146127]
[1755521887264,0.06,183.19,183.18,13.50028625]
[1755521887569,0.06,183.19,183.18,20.83146127]
[1755521888577,0.06,183.19,183.18,20.12146127]
[1755521889066,0.06,183.19,183.18,12.79028627]
[1755521889961,0.06,183.19,183.18,13.50028627]
[1755521890357,0.06,183.19,183.18,28.60650184]
[1755521891876,0.06,183.19,183.18,64.79469066]
[1755521893488,1e-08,183.19,183.18,64.79469066]
[1755521894096,1e-08,183.19,183.18,104.05469066]
[1755521898384,0.06,183.21,183.19,36.18818881]
[1755521898586,0.06,183.21,183.2,87.67739059]
[1755521898977,0.06,183.21,183.2,90.52515559]
[1755521900668,0.06,183.21,183.2,95.98367087]
[1755521904491,0.06,183.21,183.2,92.27185968]
[1755521904673,0.06,183.21,183.2,131.51185968]
[1755521905490,0.06,183.21,183.2,132.17185968]
[1755521906187,0.06,183.21,183.2,131.51185968]
[1755521907220,0.06,183.21,183.2,132.17185968]
[1755521908980,0.06,183.21,183.2,124.84068466]
[1755521909186,0.06,183.23,183.22,7.33117502]
[1755521909381,0.06,183.23,183.22,97.8455794]
[1755521909575,0.06,183.23,183.22,98.5055794]
[1755521910507,0.06,183.23,183.22,101.4665494]
[1755521910678,0.06,183.23,183.22,103.30349884]
[1755521910873,0.06,183.23,183.22,88.19728327]
[1755521913187,0.06,183.23,183.22,80.86610825]
[1755521913387,0.06,183.23,183.22,88.19728327]
[1755521915681,0.06,183.23,183.22,88.85728327]
[1755521916291,0.06,183.23,183.22,103.30349884]
[1755521916625,0.06,183.23,183.22,103.96349884]
[1755521917294,0.06,183.23,183.22,103.30349884]
[1755521918287,0.06,183.23,183.22,103.96349884]
[1755521918681,0.06,183.23,183.22,103.30349884]
[1755521921208,0.72,183.23,183.22,41.64610825]
[1755521921392,0.72,183.23,183.22,88.17728327]
[1755521921592,0.06,183.23,183.22,103.94349884]
[1755521921801,1e-08,183.23,183.22,103.94349884]
[1755521921988,0.06,183.29,183.26,41.10621557]
[1755521922189,0.06,183.29,183.28,22.43739059]
[1755521922914,0.06,183.29,183.28,27.89352328]
[1755521923296,0.72,183.29,183.25,7.33117502]
[1755521923503,4.0730545,183.28,183.24,42.845503]
[1755521923691,0.66,183.27,183.26,7.33117502]
[1755521924814,0.72,183.29,183.26,12.78774929]